Cogmind - Beta 13 @@@ ROGUE MODE // 2024.02.24 @ 18:01:42 Player: CatPlusPlus Result: Destroyed by B-75 Beast with Magnetic Acceleration Cannon Performance ------------- Evolutions (3) 1500 Regions Visited (11) 2200 Robots Destroyed (129) 645 Value Destroyed (4110) 4110 Prototype IDs (32) 640 Alien Tech Used (0) 0 Bonus (1160) 1160 TOTAL SCORE: 10255 Bonus ------- High Alert Combat Kills 67 Follower Combat Kills 41 Entered Garrisons 400 Used RIF Installer 500 Aligned with FarCom 300 Friendly Fire -148 Cogmind --------- Core Integrity 0/700 Matter 165/300 Energy 100/100 System Corruption 2% Temperature Cool (12) Movement Core (1550) Ox30 Location -7/Garrison Parts ------- > --- POWER (1) -------- (None) > --- PROPULSION (4) --- (None) > --- UTILITY (6) ------ Huge Storage Unit > --- WEAPON (2) ------- Cooled Particle Cannon Flak Gun > --- INVENTORY (25) --- Improved Heat Sink Improved Heat Sink High-capacity Matter Pod (200) Structural Scanner Improved Sensor Array Improved Signal Interpreter Transmission Jammer Relay Coupler [NC] (31) Relay Coupler [Grunt] (28) Relay Coupler [Grunt] (31) Relay Coupler [Specialist] (22) High-powered Tractor Beam Cooled Particle Cannon Autogun Grenade Launcher Mini Grenade Launcher Improved Datajack Heavy Flail Longsword +1 Peak State ------------ > --- POWER ------------ Improved Deuterium Engine > --- PROPULSION ------- Light Treads Light Treads Advanced Treads Compact Wheel > --- UTILITY ---------- Improved Heat Sink Huge Storage Unit Advanced Targeting Computer Transmission Jammer Hardened Light Armor Plating Improved Medium Armor Plating > --- WEAPON ----------- Gauss Rifle Longsword +1 > --- INVENTORY -------- Improved Deuterium Engine Compact Wheel Improved Heat Sink Improved Heat Sink High-capacity Matter Pod Structural Scanner Improved Sensor Array Improved Signal Interpreter Target Analyzer Hardened Medium Armor Plating Shield Generator Relay Coupler [NC] Relay Coupler [Grunt] Relay Coupler [Grunt] Relay Coupler [Specialist] High-powered Tractor Beam Cooled Particle Cannon Cooled Particle Cannon Cooled Particle Cannon Cooled Particle Cannon Flak Gun Grenade Launcher Mini Grenade Launcher Heavy Flail [Rating: 46] Favorites ----------- Power Improved Ion Engine Engine Improved Ion Engine Power Core Light Nuclear Core Propulsion Light Treads Treads Light Treads Leg Titanium Leg Wheel Compact Wheel Utility Improved Heat Sink Device Improved Heat Sink Storage Huge Storage Unit Processor Advanced Targeting Computer Protection Light Armor Plating Weapon Improved Assault Rifle Energy Gun Improved Medium Laser Energy Cannon Heavy Ion Cannon Ballistic Gun Improved Assault Rifle Ballistic Cannon Gauss Cannon Launcher Grenade Launcher Special Weapon Mining Laser Impact Weapon Heavy Flail Slashing Weapon Longsword +1 Build | -11 -10 -10 -9 -9 -9 -8 -8 -7 -7 -7 -7 ------- Run | Yrd Mat Min Mat Min Exi Min Mat Fac Gar Fac Gar Slots Evolved 6 | . . . 2 . . . 2 2 . . . Power . | . . . . . . . . . . . . Propulsion 2 | . . . 1 . . . 1 . . . . Utility 4 | . . . 1 . . . 1 2 . . . Weapon . | . . . . . . . . . . . . Parts Attached 205 | 2 19 5 37 10 4 5 30 16 28 28 21 Power 18 | . 2 . 3 . . 1 2 2 2 1 5 Engine 11 | . 2 . 3 . . . 1 . . 1 4 Core 7 | . . . . . . 1 1 2 2 . 1 Reactor . | . . . . . . . . . . . . Propulsion 39 | . 3 . 9 . . . 4 4 10 8 1 Treads 28 | . 2 . 9 . . . 4 2 7 3 1 Leg 6 | . 1 . . . . . . 2 3 . . Wheel 5 | . . . . . . . . . . 5 . Hover . | . . . . . . . . . . . . Flight . | . . . . . . . . . . . . Utility 84 | 1 8 4 16 9 3 3 13 5 4 11 7 Device 50 | 1 4 2 8 7 3 3 5 4 3 8 2 Storage 6 | . 1 1 2 . . . 1 . . 1 . Processor 1 | . . . . . . . 1 . . . . Hackware . | . . . . . . . . . . . . Protection 27 | . 3 1 6 2 . . 6 1 1 2 5 Artifact . | . . . . . . . . . . . . Weapon 64 | 1 6 1 9 1 1 1 11 5 12 8 8 Energy Gun 5 | . 2 . 2 . . . . . 1 . . Energy Cannon 14 | . . . . . . . 4 2 3 2 3 Ballistic Gun 30 | 1 2 1 6 1 . 1 4 2 5 4 3 Ballistic Cannon 3 | . . . . . . . 2 . . . 1 Launcher 5 | . 1 . 1 . 1 . 1 1 . . . Special Weapon 1 | . 1 . . . . . . . . . . Impact Weapon 1 | . . . . . . . . . . . 1 Slashing Weapon 5 | . . . . . . . . . 3 2 . Piercing Weapon . | . . . . . . . . . . . . Special Melee Weapon . | . . . . . . . . . . . . Unidentified Prototypes 1 | . . . . . . . . . . 1 . Parts Lost 34 | . 1 . 2 . . . 1 4 5 6 15 Power 5 | . 1 . . . . . . 1 1 . 2 Propulsion 13 | . . . . . . . . 3 3 3 4 Utility 12 | . . . 1 . . . 1 . 1 3 6 Weapon 4 | . . . 1 . . . . . . . 3 Highest Loss Streak 15 | . 1 . 2 . . . 1 4 3 2 15 To Critical Strikes . | . . . . . . . . . . . . Average Slot Usage (%) 97 | . 98 100 99 100 99 100 99 88 96 99 88 Engine 5 | . 12 14 11 11 11 5 . 1 . 4 6 Core 3 | . . . . . . 5 8 5 6 2 . Treads 26 | . 12 28 32 33 33 33 35 18 19 21 12 Leg 2 | . 15 . . . . . . 7 7 . . Wheel 1 | . . . . . . . . . . 7 12 Device 15 | . 11 10 11 15 10 11 12 20 23 19 13 Storage 9 | . 14 14 11 11 11 11 9 7 7 7 7 Processor 3 | . . . . . . . 6 7 7 7 6 Protection 8 | . 2 3 9 6 11 11 8 4 7 10 12 Energy Gun 3 | . 8 2 2 11 11 11 . . 3 . . Energy Cannon 3 | . . . . . . . 7 6 4 4 3 Ballistic Gun 10 | . 18 11 18 10 10 11 8 6 3 6 5 Naked Turns . | . . . . . . . . . . . . Heaviest Build 116 | 11 22 48 60 57 57 57 111 114 110 116 115 Greatest Support 86 | 20 40 40 63 63 63 63 83 83 80 86 26 Greatest Overweight (x) 7 | . 1 1 . . . . 1 2 2 7 4 Average Overweight (x) 1 | . . . . . . . . 1 1 5 4 Largest Inventory Capacity 25 | 8 10 20 20 20 20 20 25 25 25 25 25 Average Capacity 21 | 8 9 15 19 20 20 20 23 25 25 25 25 Most Carried 25 | 7 10 12 20 20 20 20 25 25 25 25 25 Average Carried 20 | 6 9 11 18 20 19 19 23 23 24 24 24 Final Capacity 25 | 8 10 20 20 20 20 20 25 25 25 25 25 Final Carried 25 | 7 10 12 20 20 20 20 25 23 25 24 19 Class Distribution -------------------- 83% | Scavenger-Mutant 16% | Mutant Dominant Class ---------------- Mutant | -10/Materials Mutant | -10/Mines Scavenger-Mutant | -9/Materials Scavenger-Mutant | -9/Mines Scavenger-Mutant | -9/Exiles Scavenger-Mutant | -8/Mines Scavenger-Mutant | -8/Materials Scavenger-Mutant | -7/Factory Scavenger-Mutant | -7/Garrison Scavenger-Mutant | -7/Factory Scavenger-Mutant | -7/Garrison Resources | -11 -10 -10 -9 -9 -9 -8 -8 -7 -7 -7 -7 ----------- Run | Yrd Mat Min Mat Min Exi Min Mat Fac Gar Fac Gar Matter Collected 4422 | 254 274 86 1248 110 . 146 538 293 319 632 522 Remotely . | . . . . . . . . . . . . Salvage Created 5575 | 177 480 56 1437 175 . 139 606 366 547 1405 187 Parts 265 | 9 16 1 74 12 . 6 33 14 30 62 8 Haulers Intercepted 11 | . 1 . 6 . . . 3 . . 1 . Recyclers Shooed 20 | . 4 . 9 1 . . 1 . . 5 . Parts Field Recycled . | . . . . . . . . . . . . Retrieved Matter . | . . . . . . . . . . . . Parts Self-Destructed . | . . . . . . . . . . . . Prevented . | . . . . . . . . . . . . Kills | -11 -10 -10 -9 -9 -9 -8 -8 -7 -7 -7 -7 ------- Run | Yrd Mat Min Mat Min Exi Min Mat Fac Gar Fac Gar Combat Hostiles Destroyed 77 | . 7 2 15 4 . 2 8 8 9 18 4 Guns 52 | . 6 . 15 . . 2 3 3 6 15 2 Cannons 13 | . . . . . . . 5 2 2 2 2 AOE 10 | . 1 1 . 4 . . . 3 . 1 . Classes Destroyed 13 | 2 2 . 4 1 . . 2 1 . 1 . Worker 5 | . . . . 1 . 1 . . . 3 . Builder 3 | . . . 1 . . . 1 . . 1 . Tunneler 7 | 5 . . 1 . . . . 1 . . . Hauler 11 | . 1 . 6 . . . 3 . . 1 . Recycler 22 | 1 2 . 7 2 . . 1 2 . 7 . Operator 1 | . . . . . . . . . . 1 . Watcher 2 | . . . 1 . . . 1 . . . . Swarmer 13 | . . . 3 4 . . . 4 . 2 . Grunt 31 | . 7 2 5 . . 3 4 2 2 6 . Duelist 2 | . . . . . . . 1 1 . . . Sentry 20 | . . . 7 . . . 1 . 3 6 3 Hunter 7 | . . . . . . . 2 . 3 2 . Programmer 5 | . . . . . . . . 1 1 2 1 Best Kill Streak 6 | 3 2 2 6 4 . 2 2 5 5 5 2 Combat Bots Only 5 | . 2 2 5 4 . 2 2 4 5 3 2 Max Kills in Single Turn 3 | 1 1 1 2 2 . 1 1 3 1 2 1 Gunslinging . | . . . . . . . . . . . . Exploded 2 | . 1 1 . 2 . . . 2 . 1 . Melee . | . . . . . . . . . . . . Uniques/NPCs Destroyed . | . . . . . . . . . . . . Combat | -11 -10 -10 -9 -9 -9 -8 -8 -7 -7 -7 -7 -------- Run | Yrd Mat Min Mat Min Exi Min Mat Fac Gar Fac Gar Hostile Shots Fired 780 | . 54 17 53 4 . 19 50 67 178 171 167 Missed 248 | . 15 3 15 1 . 8 10 13 62 61 60 Damage Taken 7444 | . 533 203 510 55 . 166 665 1066 964 1180 2102 Core 1044 | . 162 15 63 10 . 16 71 35 114 154 404 Absorbed by Shields 152 | . . . . . . . . . 26 126 . Ignored by Resistances 12 | . . . . . . . . . . . 12 Regen/Repaired (Parts) 522 | . . . 278 . . . 244 . . . . Core Remaining (%) 73 | 100 . 29 . . . 77 87 . . . . Volleys Fired 440 | 17 83 8 85 5 . 12 63 32 28 58 49 Largest 2 | 2 2 1 2 1 . 2 2 2 2 2 2 Hottest 180 | 40 100 65 88 56 . 79 130 130 130 180 180 Shots Fired 803 | 34 159 8 164 5 . 24 115 40 55 116 83 Gun 628 | 34 158 5 163 3 . 24 63 19 31 102 26 Cannon 165 | . . . . . . . 52 18 24 14 57 Launcher 9 | . . 3 1 2 . . . 3 . . . Special 1 | . 1 . . . . . . . . . . Kinetic 578 | 34 119 . 146 . . 12 72 19 20 102 54 Thermal 210 | . 34 5 17 3 . 12 43 18 35 14 29 Explosive 9 | . . 3 1 2 . . . 3 . . . Electromagnetic 6 | . 6 . . . . . . . . . . Robot Hit Streak 19 | 8 14 3 17 2 . 10 18 14 14 15 19 Robot Miss Streak 5 | 2 5 3 5 1 . 3 5 3 2 4 2 Penetration Max 1 | . . . . . . . . . . 1 1 Secondary Targets 3 | . 1 . 2 . . . . . . . . Max Gunslinging Chain 1 | . 1 . 1 . . . . . . . . Shots Hit Robots 596 | 23 95 3 123 2 . 18 83 28 47 104 70 Core Hits 289 | 10 34 4 57 6 . 6 31 16 17 88 20 Critical Kills 1 | . . . . . . . . . 1 . . Critical Parts Destroyed 2 | . . . 1 . . . . . . 1 . Critical Strikes 5 | . . . 1 . . . . . 3 1 . Burn 1 | . . . . . . . . . 1 . . Meltdown 1 | . . . . . . . . . 1 . . Destroy 2 | . . . 1 . . . . . . 1 . Sever 1 | . . . . . . . . . 1 . . Melee Attacks 39 | . . . . . . . . . 16 19 4 Impact 4 | . . . . . . . . . . . 4 Slashing 35 | . . . . . . . . . 16 19 . Piercing . | . . . . . . . . . . . . Sneak Attacks 10 | . . . . . . . . . . 10 . Combat Hostiles . | . . . . . . . . . . . . Follow-up Attacks . | . . . . . . . . . . . . Damage Inflicted 13563 | 198 1050 210 1946 265 . 361 1542 1094 1385 3386 2126 Guns 7160 | 198 941 47 1889 34 . 354 821 208 507 1629 532 Cannons 3653 | . . . . . . . 696 434 518 411 1594 Explosions 1267 | . 109 163 57 228 . . . 449 . 261 . Melee 1435 | . . . . . . . . . 360 1075 . Ramming 48 | . . . . 3 . 7 25 3 . 10 . Kinetic 6957 | 198 595 . 1670 . . 165 927 208 332 1629 1233 Thermal 3923 | . 413 47 219 34 . 189 590 434 693 411 893 Explosive 1158 | . . 163 57 228 . . . 449 . 261 . Electromagnetic 42 | . 42 . . . . . . . . . . Impact . | . . . . . . . . . . . . Slashing 1435 | . . . . . . . . . 360 1075 . Piercing . | . . . . . . . . . . . . Highest Corruption 2 | . . . . . . . 2 . . 2 2 Average Corruption 2 | . . . . . . . 2 . . 2 2 Corruption Purged . | . . . . . . . . . . . . Corruption Blocked . | . . . . . . . . . . . . Effects 23 | . . . . . . . 11 . . 2 10 Message Errors 6 | . . . . . . . 2 . . 1 3 Matter Fused 4 | . . . . . . . . . . 1 3 Heat Flow Errors 3 | . . . . . . . 2 . . . 1 Energy Discharges 1 | . . . . . . . 1 . . . . Parts Rejected 1 | . . . . . . . . . . . 1 Parts Fused 1 | . . . . . . . 1 . . . . Data Loss (minor) 5 | . . . . . . . 4 . . . 1 Alerts 2 | . . . . . . . 1 . . . 1 Overload Shots 9 | . . . . . . . . . . 2 7 Overflow Damage 652 | . . 10 . . . . 10 34 36 554 8 Projectiles 85 | . . . . . . . 10 . . 67 8 Explosions 93 | . . 10 . . . . . 34 . 49 . Melee 474 | . . . . . . . . . 36 438 . Knockbacks 7 | . . . . . . . 5 1 . . 1 Impact 1 | . . . . . . . . 1 . . . Kinetic 4 | . . . . . . . 3 . . . 1 Secondary 2 | . . . . . . . 2 . . . . Self-Inflicted Damage 174 | . . . . 31 . . . 92 . 51 . Shots 4 | . . . . 1 . . . 2 . 1 . Rammed 5 | . . . . . . 1 3 . . 1 . Targets Rammed 9 | . . . . 1 . 2 4 1 . 1 . Kicked . | . . . . . . . . . . . . Crushed 4 | . . . . 1 . 1 1 1 . . . Highest Temperature 459 | . 459 140 65 36 . 53 388 228 180 78 218 Average Temperature 78 | . 101 62 20 15 . 32 111 107 74 16 71 Received Heat Transfer 2109 | . 342 87 219 . . 99 153 324 240 297 348 Effects 5 | . 1 . . . . . 4 . . . . Energy Bleed 1 | . . . . . . . 1 . . . . Interference 3 | . . . . . . . 3 . . . . Damage (major) 1 | . 1 . . . . . . . . . . Siege Activations . | . . . . . . . . . . . . Robots Corrupted . | . . . . . . . . . . . . Combat Hostiles . | . . . . . . . . . . . . Parts Fried . | . . . . . . . . . . . . Impact Corruptions . | . . . . . . . . . . . . Robots Melted 2 | . . 1 . . . . . . 1 . . Combat Hostiles 2 | . . 1 . . . . . . 1 . . Parts Melted 8 | . 3 1 . . . 2 1 . 1 . . Heat Transferred 5305 | . 803 111 481 74 . 407 888 518 1036 396 591 Parts Sabotaged . | . . . . . . . . . . . . Parts Stolen . | . . . . . . . . . . . . Parts Stripped . | . . . . . . . . . . . . Power Chain Reactions 1 | . 1 . . . . . . . . . . Alert | -11 -10 -10 -9 -9 -9 -8 -8 -7 -7 -7 -7 ------- Run | Yrd Mat Min Mat Min Exi Min Mat Fac Gar Fac Gar Peak Influence 465 | 30 140 90 341 136 . 35 173 145 465 451 405 Initial 298 | . 19 . 35 11 . . 7 . . 243 298 Average 98 | 18 49 73 73 59 . 8 40 26 213 199 347 Maximum Alert Level 2 | . . . 1 . . . 1 . 2 2 2 Low Security (%) 82 | 100 100 100 88 100 . 100 99 100 48 54 . Level 1 14 | . . . 11 . . . . . 37 38 81 Level 2 3 | . . . . . . . . . 14 6 18 Level 3 . | . . . . . . . . . . . . Level 4 . | . . . . . . . . . . . . Level 5 . | . . . . . . . . . . . . High Security . | . . . . . . . . . . . . Max Security . | . . . . . . . . . . . . Squads Dispatched 17 | . 1 . 3 . . . 2 1 . 10 . Investigation 2 | . . . 1 . . . 1 . . . . Extermination 3 | . . . . . . . . 1 . 2 . Reinforcement 7 | . 1 . 2 . . . 1 . . 3 . Assault . | . . . . . . . . . . . . Garrison 5 | . . . . . . . . . . 5 . Intercept . | . . . . . . . . . . . . Searches Triggered . | . . . . . . . . . . . . Construction Impeded 1 | . . . 1 . . . . . . . . Haulers Reinforced 1 | . . . . . . . . . . 1 . Active Scanning Responses . | . . . . . . . . . . . . Cargo Convoy Interrupts . | . . . . . . . . . . . . Stealth | -11 -10 -10 -9 -9 -9 -8 -8 -7 -7 -7 -7 --------- Run | Yrd Mat Min Mat Min Exi Min Mat Fac Gar Fac Gar Distress Signals 6 | . 1 . 3 . . . 2 . . . . Communications Jammed 20 | . . . . . . . . . . 20 . Distress Signals 19 | . . . . . . . . . . 19 . Times Spotted 125 | . 22 4 22 2 . 4 23 9 11 23 5 Peak Tracking Total 5 | . 3 2 5 2 . 3 4 4 5 3 2 Tactical Retreats 7 | . . . 1 . . 1 3 . 1 1 . Traps | -11 -10 -10 -9 -9 -9 -8 -8 -7 -7 -7 -7 ------- Run | Yrd Mat Min Mat Min Exi Min Mat Fac Gar Fac Gar Traps Triggered 6 | . 1 . . . . . 2 . 2 1 . Indirectly . | . . . . . . . . . . . . Trap Hack Attempts . | . . . . . . . . . . . . Triggered . | . . . . . . . . . . . . Disarmed . | . . . . . . . . . . . . Reprogrammed . | . . . . . . . . . . . . Reused . | . . . . . . . . . . . . Traps Extracted . | . . . . . . . . . . . . Installed . | . . . . . . . . . . . . Triggered . | . . . . . . . . . . . . Most Traps Carried 2 | . . . . . . . . . 2 . . Machines | -11 -10 -10 -9 -9 -9 -8 -8 -7 -7 -7 -7 ---------- Run | Yrd Mat Min Mat Min Exi Min Mat Fac Gar Fac Gar Machines Disabled 14 | . . 1 1 . . . . . 7 4 1 Max in Single Turn 4 | . . 1 1 . . . . . 1 4 1 Garrison Access 1 | . . . . . . . . . . 1 . Garrison Relay 2 | . . . . . . . . . 2 . . Machines Repaired . | . . . . . . . . . . . . Machines Dismantled . | . . . . . . . . . . . . Machines Sabotaged . | . . . . . . . . . . . . Overloaded Fab Kills . | . . . . . . . . . . . . Hacking | -11 -10 -10 -9 -9 -9 -8 -8 -7 -7 -7 -7 --------- Run | Yrd Mat Min Mat Min Exi Min Mat Fac Gar Fac Gar Machines Accessed 32 | . 4 . 11 . 2 . 5 5 . 4 1 Terminals 19 | . 2 . 7 . . . 3 4 . 2 1 Fabricators . | . . . . . . . . . . . . Repair Stations 3 | . . . 2 . . . 1 . . . . Recycling Units 4 | . 2 . 1 . . . 1 . . . . Scanalyzers 1 | . . . 1 . . . . . . . . Garrison Access 3 | . . . . . . . . 1 . 2 . Total Hacks 85 | . 12 . 36 . 2 . 19 8 . 6 2 Successful 48 | . 6 . 23 . 2 . 12 2 . 3 . Failed 37 | . 6 . 13 . . . 7 6 . 3 2 Catastrophic 6 | . 1 . 1 . . . 1 2 . . 1 Database Lockouts . | . . . . . . . . . . . . Manual 28 | . 5 . 9 . 1 . 7 3 . 3 . Terminals 51 | . 6 . 22 . . . 10 7 . 4 2 Fabricators . | . . . . . . . . . . . . Repair Stations 15 | . . . 10 . . . 5 . . . . Recycling Units 11 | . 6 . 1 . . . 4 . . . . Scanalyzers 3 | . . . 3 . . . . . . . . Garrison Access 3 | . . . . . . . . 1 . 2 . Terminal Hacks 13 | . 1 . 7 . 2 . 2 . . 1 . Record 1 | . . . . . 1 . . . . . . Robot Analysis 2 | . . . 2 . . . . . . . . Prototype ID Bank 3 | . . . 3 . . . . . . . . Unreport Threat 3 | . . . 1 . . . 2 . . . . Locate Traps 1 | . . . . . . . . . . 1 . Hauler Manifests 2 | . 1 . 1 . . . . . . . . Derelict Proto ID Bank 1 | . . . . . 1 . . . . . . Fabricator Hacks . | . . . . . . . . . . . . Repair Station Hacks 14 | . . . 10 . . . 4 . . . . Scan Component 7 | . . . 5 . . . 2 . . . . Repair 7 | . . . 5 . . . 2 . . . . Recycling Unit Hacks 4 | . 3 . . . . . 1 . . . . Retrieve Components 4 | . 3 . . . . . 1 . . . . Scanalyzer 3 | . . . 3 . . . . . . . . Insert Component 3 | . . . 3 . . . . . . . . Garrison Access Hacks 3 | . . . . . . . . 1 . 2 . Unlock Access 2 | . . . . . . . . 1 . 1 . Seal Access 1 | . . . . . . . . . . 1 . Unauthorized Hacks 11 | . 2 . 3 . . . 5 1 . . . Terminals 6 | . . . 2 . . . 3 1 . . . Assimilate 2 | . . . . . . . 1 1 . . . Botnet 4 | . . . 2 . . . 2 . . . . Fabricators . | . . . . . . . . . . . . Repair Stations . | . . . . . . . . . . . . Recycling Units 5 | . 2 . 1 . . . 2 . . . . Reject 2 | . 1 . . . . . 1 . . . . Mask 2 | . 1 . . . . . 1 . . . . Tunnel 1 | . . . 1 . . . . . . . . Scanalyzers . | . . . . . . . . . . . . Garrison Access . | . . . . . . . . . . . . Data Cores Recovered . | . . . . . . . . . . . . Used . | . . . . . . . . . . . . Hacking Detections 23 | . 4 . 9 . . . 4 3 . 2 1 Full Trace Events 1 | . . . . . . . 1 . . . . Feedback Events . | . . . . . . . . . . . . Feedback Blocked . | . . . . . . . . . . . . Robot Schematics Acquired . | . . . . . . . . . . . . Robots Built . | . . . . . . . . . . . . Authchips . | . . . . . . . . . . . . Time . | . . . . . . . . . . . . Total Robot Build Rating . | . . . . . . . . . . . . Part Schematics Acquired . | . . . . . . . . . . . . Parts Built . | . . . . . . . . . . . . Authchips . | . . . . . . . . . . . . Time . | . . . . . . . . . . . . Total Part Build Rating . | . . . . . . . . . . . . Parts Repaired 7 | . . . 5 . . . 2 . . . . Time 206 | . . . 136 . . . 70 . . . . Parts Recycled . | . . . . . . . . . . . . Recycled Matter . | . . . . . . . . . . . . Retrieved Matter . | . . . . . . . . . . . . Retrieved Components 8 | . 3 . . . . . 5 . . . . Parts Scanalyzed . | . . . . . . . . . . . . Part Schematics Acquired . | . . . . . . . . . . . . Parts Damaged . | . . . . . . . . . . . . Bothacking | -11 -10 -10 -9 -9 -9 -8 -8 -7 -7 -7 -7 ------------ Run | Yrd Mat Min Mat Min Exi Min Mat Fac Gar Fac Gar Used RIF Installer 1 | . . . . . . . . . 1 . . Robots Hacked . | . . . . . . . . . . . . Non-combat . | . . . . . . . . . . . . Combat . | . . . . . . . . . . . . Robot Hacks Applied . | . . . . . . . . . . . . Relay Couplers Released 7 | . . . . . . . . . 7 . . Machine Destruction 7 | . . . . . . . . . 7 . . Fabnet Peak Effective % . | . . . . . . . . . . . . Robots Rewired 2 | . . . . . . . . . . . 2 Allies Hacked 1 | . . . . . . . . . . . 1 Hacks Repelled . | . . . . . . . . . . . . Allies | -11 -10 -10 -9 -9 -9 -8 -8 -7 -7 -7 -7 -------- Run | Yrd Mat Min Mat Min Exi Min Mat Fac Gar Fac Gar Total Allies 7 | . . . . 3 . . 1 1 . . 2 Largest Group 3 | . . . . 3 3 3 1 2 . . 2 Highest-Rated Group 51 | . . . . 40 40 40 10 36 . . 51 Highest-Rated Ally 31 | . . . . 16 16 16 10 26 . . 31 Total Orders . | . . . . . . . . . . . . Ally Attacks 21 | . . . . . . 15 . . . . 6 Total Damage 262 | . . . . . . 185 . . . . 77 Kills 1 | . . . . . . 1 . . . . . Allies Corrupted . | . . . . . . . . . . . . Allies Melted . | . . . . . . . . . . . . Intel | -11 -10 -10 -9 -9 -9 -8 -8 -7 -7 -7 -7 ------- Run | Yrd Mat Min Mat Min Exi Min Mat Fac Gar Fac Gar Robot Analysis Total 2 | . . . 2 . . . . . . . . Derelict Logs Recovered 2 | . . . . 2 . . . . . . . Drone Launches . | . . . . . . . . . . . . Drone Recoveries . | . . . . . . . . . . . . Exploration | -11 -10 -10 -9 -9 -9 -8 -8 -7 -7 -7 -7 ------------- Run | Yrd Mat Min Mat Min Exi Min Mat Fac Gar Fac Gar Turns Passed 13156 | 121 1048 268 2557 920 516 692 2081 1428 1398 1638 489 Spaces Moved 5692 | 36 555 120 1259 547 318 400 792 440 396 656 173 Core . | . . . . . . . . . . . . Treads 4585 | . 231 120 1259 547 318 400 792 440 396 82 . Legs 360 | 36 324 . . . . . . . . . . Wheels 747 | . . . . . . . . . . 574 173 Hover . | . . . . . . . . . . . . Flight . | . . . . . . . . . . . . Fastest Speed 120 | 120 120 160 160 160 160 160 160 240 240 150 150 Average Speed 189 | 120 137 202 160 160 160 160 215 300 286 193 150 Slowest Speed 320 | 120 190 240 160 160 160 160 240 320 320 240 150 Overloaded Moves . | . . . . . . . . . . . . Propulsion Burnouts . | . . . . . . . . . . . . Robots Hopped . | . . . . . . . . . . . . Cave-ins Triggered . | . . . . . . . . . . . . Exploration Rate (%) 47 | 3 86 36 70 89 70 76 56 12 34 19 15 Regions Visited 11 Branch Regions 4 Pre-discovered Areas 3 | . . . 1 1 1 . . . . . . Known Exits Taken 2 | . . . . . . . . 1 . 1 . Unknown Exits Taken 8 | 1 1 1 1 1 1 1 1 . . . . Scrap Searched 2 | . . 1 . 1 . . . . . . . Spaces Dug 11 | . 1 . . . . . 6 . . 4 . Terrain Destroyed 120 | . 5 20 8 14 . . 17 17 1 36 2 Melee 4 | . . . . . . . . . . 4 . Projectile 25 | . 1 . . . . . 17 1 1 3 2 AOE 91 | . 4 20 8 14 . . . 16 . 29 . Terrain Rammed . | . . . . . . . . . . . . Walls Destroyed . | . . . . . . . . . . . . Machines Disabled . | . . . . . . . . . . . . Actions | -11 -10 -10 -9 -9 -9 -8 -8 -7 -7 -7 -7 --------- Run | Yrd Mat Min Mat Min Exi Min Mat Fac Gar Fac Gar Total 7283 | 86 702 136 1653 581 325 428 1069 506 593 889 315 Wait 637 | 27 21 . 194 19 . 4 130 9 89 93 51 Move 5681 | 35 554 119 1258 546 317 399 791 439 394 656 173 Hop . | . . . . . . . . . . . . Pick Up 123 | 3 14 2 44 . 1 2 24 3 15 14 1 Fast Attach 42 | 1 3 . 5 . 2 . 9 5 9 5 3 Attach 29 | . 2 . 4 . . . 3 7 1 5 7 Detach 6 | . . . 2 . . . . 3 . . 1 Swap 134 | 1 14 5 28 10 2 5 18 4 18 18 11 Drop 133 | 2 11 1 33 . 3 4 27 3 21 20 8 Fire 440 | 17 83 8 85 5 . 12 63 32 28 58 49 Melee 39 | . . . . . . . . . 16 19 4 Ram . | . . . . . . . . . . . . Kick . | . . . . . . . . . . . . Crush 9 | . . . . 1 . 2 4 1 . 1 . Escape Stasis 2 | . . . . . . . . . 2 . . Rewire 8 | . . 1 . . . . . . . . 7 Trap . | . . . . . . . . . . . . Miscellaneous . | . . . . . . . . . . . . Route ------- -11/Scrapyard -10/Materials (discovered 3 exits: *Mat x2 / [*Min]) -10/Mines -9/Materials -9/Mines (discovered 4 exits: *Mat x2 / *Exi / [*Zio]) -9/Exiles -8/Mines -8/Materials -7/Factory (discovered 4 exits: [*Fac] / [*Sto] / Low / Gar) -7/Garrison -7/Factory (discovered 2 exits: *Low / Gar) -7/Garrison History --------- Turn | Location | Event 19 | -11/Scrapyard | Discovered new exit (range 3) 122 | -11/Scrapyard | Entered Materials 289 | -10/Materials | Discovered new exit (range 8) 315 | -10/Materials | Build established: Mutant 503 | -10/Materials | Discovered new exit (range 5) 803 | -10/Materials | Discovered new exit (range 7) 835 | -10/Materials | Core integrity fell below 50% 1170 | -10/Materials | Entered Mines 1236 | -10/Mines | Found a hidden stash of uninstalled traps 1397 | -10/Mines | Discovered new exit (range 11) 1438 | -10/Mines | Entered Materials 1438 | -9/Materials | Evolved 2 slots: Propulsion x1, Utility x1 2171 | -9/Materials | Repaired Imp. Treads 2273 | -9/Materials | Build established: Scavenger-Mutant 2428 | -9/Materials | Discovered new exit (range 15) 2991 | -9/Materials | Repaired Lgt. Armor Plating 3018 | -9/Materials | Repaired Hcp. Storage Unit 3089 | -9/Materials | Repaired Lgt. Armor Plating 3116 | -9/Materials | Repaired Grenade Launcher 3995 | -9/Materials | Entered Mines 4046 | -9/Mines | Discovered new exit (range 11) 4423 | -9/Mines | Learned location of Storage (-7) 4666 | -9/Mines | A Derelict revealed a hidden shortcut to a safe place 4692 | -9/Mines | Assisted by bots powering up and referring to "LRC-V3" 4718 | -9/Mines | Discovered new exit (range 9) 4907 | -9/Mines | Deemed a non-threat by the Exiles lab entrance 4908 | -9/Mines | Discovered new exit (range 5) 4915 | -9/Mines | Entered Exiles 4915 | -9/Exiles | Accompanied by 3 allies 4954 | -9/Exiles | Met 8R-AWN 4983 | -9/Exiles | Met EX-HEX 5026 | -9/Exiles | Met EX-BIN 5043 | -9/Exiles | Aligned with FarCom system 5045 | -9/Exiles | Given EX-Vault access code 5085 | -9/Exiles | Opened EX-Vault 5097 | -9/Exiles | Found Cloak of Protection 5112 | -9/Exiles | Found Longsword +1 5147 | -9/Exiles | Warned to stay clear of 0b10 Research branches 5195 | -9/Exiles | Met EX-DEC 5206 | -9/Exiles | Learned location of Zion (-7) 5415 | -9/Exiles | Discovered new exit (range 10) 5431 | -9/Exiles | Left Exiles lab with Longsword +1 5431 | -9/Exiles | Entered Mines 5431 | -8/Mines | Accompanied by 3 allies 5837 | -8/Mines | Lost 3 allies 6003 | -8/Mines | Discovered new exit (range 14) 6123 | -8/Mines | Entered Materials 6123 | -8/Materials | Evolved 2 slots: Propulsion x1, Utility x1 6621 | -8/Materials | Discovered new exit (range 13) 7848 | -8/Materials | Repaired Imp. Treads 7887 | -8/Materials | Repaired Hrd. Medium Armor Plating 8204 | -8/Materials | Entered Factory 8204 | -7/Factory | Accompanied by 1 ally 8204 | -7/Factory | Evolved 2 slots: Utility x2 8205 | -7/Factory | Identified exit to Lower Caves 8549 | -7/Factory | Lost 4 parts (1p3n) 9206 | -7/Factory | Discovered new exit (range 4) 9373 | -7/Factory | Identified exit to Garrison 9443 | -7/Factory | Discovered new exit (range 15) 9632 | -7/Factory | Entered Garrison 9937 | -7/Garrison | Installed Relay Interface Framework 10118 | -7/Garrison | Lost 3 parts (1p2n) 10272 | -7/Garrison | Triggered checkpoint 10311 | -7/Garrison | Garrison Relay disabled 10542 | -7/Garrison | Triggered checkpoint 10633 | -7/Garrison | Triggered checkpoint 10900 | -7/Garrison | Discovered new exit (range 10) 10958 | -7/Garrison | Triggered checkpoint 10971 | -7/Garrison | Garrison Relay disabled 11030 | -7/Garrison | Entered Factory 11509 | -7/Factory | Discovered exit to Lower Caves (range 9) 12219 | -7/Factory | Garrison activated, responded to threat 12527 | -7/Factory | Garrison activated, responded to threat 12668 | -7/Factory | Identified exit to Garrison 12668 | -7/Factory | Entered Garrison 12742 | -7/Garrison | Triggered checkpoint 13034 | -7/Garrison | Spotted B-75 Beast 13037 | -7/Garrison | Core integrity fell below 50% 13137 | -7/Garrison | Core integrity fell below 20% 13157 | -7/Garrison | Destroyed by B-75 Beast with Magnetic Acceleration Cannon Last Messages --------------- 13094_ Slug penetrates B-75 Beast. 13098_ Gauss Cannon destroyed. 13104_ Imp. Heat Sink destroyed. 13104_ Mic. Nuclear Core destroyed. 13107_ Destroyed Imp. Cooling System. 13108_ EM Disruption Field destroyed. 13116_ System corrupted: Imp. Deuterium Engine rejected. 13116_ Acquired Imp. Deuterium Engine. 13119_ Knocked back. 13120_ Acquired 5 matter. 13124_ Cld. Particle Cannon destroyed. 13124_ Imp. Deuterium Engine destroyed. 13124_ Knocked back. 13125_ Acquired 9 matter. 13129_ Slug penetrates B-75 Beast. 13136_ Knocked back. 13137_ Acquired 9 matter. 13137_ Slug penetrates B-75 Beast. 13147_ Gauss Rifle destroyed. Map ----- +----------------------------------------------------+ | | | | | | | ?????????????????????????????????????????????????? | | ?????????????????????????????????????????????????? | | ?????????????????????????????????????????????????? | | ?????????????????????????????????????????????????? | | ?????????????????????????????????????????????????? | | ?????????????????????????????????????????????????? | | ?????????????????????????????????????????????????? | | ?????????????????????????????????????????????????? | | ?????????????????????????????????????????????????? | | ?????????????????????????????????????????????????? | | ?????????????????????????????????????????????????? | | ?????????????????????????????????????????????????? | | ????????????????????????????????#????????????????? | | ??????????????????????????????? #????????????????? | | ??????????????????????????????? ?????????????????? | | ?????????????????????????????? ??????????????????? | | ????????????????????????????? #??????????????????? | | ????????????????######????### ##?????????????????? | | ????????????????#! !#????!!! !#?????????????????? | | ????????????????#! !#????! !#?????????????????? | | ??????????????####%!;#####^ !#?????????????????? | | ??????????????#%%BB%;^* #?????????????????? | | ??????????????#%%BB!; @ #?????????????????? | | ??######??????###;% *;####^ !#?????????????????? | | ??# #????????## ##????! !#?????????????????? | | ??# #?????????# #??????!! !#?????????????????? | | ??# #?????????# #??????#####?????????????????? | | ??### #?????????# #????????????????????????????? | | ????# #?????????# #????????????????????????????? | | ????# #?????????# #????????????????????????????? | | ????# #?????????# #????????????????????????????? | | ????# ####??????# #????????????????????????????? | | ????# ## ######## ######???????????????????????? | | ????# ! #??????????????????? | | ????# [ #??????????????????? | | ????######## ##### ######## #??????????????????? | | ???????????# #???# #????????????????????????????? | | ???????????# #???# #????????????????????????????? | | ???????????# #???# #????????????????????????????? | | ############ ##### #????????????????????????????? | | [= " # #????????????????????????????? | | ##### ############ #????????????????????????????? | | ???##!##?????????? #????????????????????????????? | | ???# ]#?????????? #????????????????????????????? | | ???#! ]#?????????? ????????????????????????????? | | ???#! ]#?????????? ????????????????????????????? | | ???#####??????????###????????????????????????????? | +----------------------------------------------------+ Best States ------------- Heat Dissipation 55 Energy Generation 16 Energy Capacity 290 Matter Stores 300 Matter Capacity 300 Sight Range 16 Robot Scan Range 14 Terrain Scan Density 10 Jamming Range 12 Additional Mass Support 6 Armor Coverage 450 Resistance: EM 25 Evasion (%) 55 Targeting Accuracy 8 Recoil Reduction 4 Energy Filtering 30 Particle Charging 15 Item Schematics ----------------- None Robot Schematics ------------------ None Fabricated ------------ Nothing Alien Tech Used ----------------- None Achievements -------------- None Challenges ------------ None Game ------ Seed ThermicGrapheneExoskeleton Manual? 0 Play Time 02:07:11 Cumulative 52.8 hours Start 2024.02.24 @ 06:26:14 End 2024.02.24 @ 18:01:42 Sessions 3 Manual Loads 0 Difficulty Rogue Special Mode None Game No. 33 Rogue 33 Adventurer 0 Explorer 0 Win Type - Total 2 Types 2/0/0/0/0/0/0/0/0 Lore% 35 Gallery% 47 Achievement% 37 Wizard Run 0 Options --------- Layout 2 ASCII 0 Keyboard 1 Movement Numpad Keybinds 0 Fullscreen 2 Font 32/Tamsyn Map View 50x44 Zoom Use 0% Tactical HUD 1 Map Filters NONE Filters NONE Steam 1 RUN: 9eede94b-6920-424d-8074-481244601bd5